[Event "Early-Titled-Tuesday-Blitz-February-06-2024"]
[Site "Chess.com"]
[Date "2024.02.06"]
[Round "2"]
[White "yuriydovzik"]
[Black "Chesstrainer1"]
[Result "0-1"]
[WhiteElo "2228"]
[BlackElo "2471"]
[TimeControl "180+1"]
[EndTime "8:18:11 PST"]
[Termination "Chesstrainer1 won on time"]

1. g3 {[%clk 0:03:00.9]} 1... e5 {[%clk 0:02:52.8]} 2. c4 {[%clk 0:02:56.6]}
2... Nf6 {[%clk 0:02:44.7]} 3. Bg2 {[%clk 0:02:52.3]} 3... c6 {[%clk 0:02:45]}
4. b3 {[%clk 0:02:39.8]} 4... d5 {[%clk 0:02:42.5]} 5. Bb2 {[%clk 0:02:36]} 5...
Bd6 {[%clk 0:02:42.4]} 6. d3 {[%clk 0:02:29.4]} 6... Kf8 {[%clk 0:02:40.5]} 7.
Nd2 {[%clk 0:02:22.9]} 7... Kg8 {[%clk 0:02:41.4]} 8. Ngf3 {[%clk 0:02:19.8]}
8... Qe7 {[%clk 0:02:40.5]} 9. O-O {[%clk 0:02:18.1]} 9... h6 {[%clk 0:02:38]}
10. h3 {[%clk 0:02:07.2]} 10... Bf5 {[%clk 0:02:25.9]} 11. e4 {[%clk 0:02:00.7]}
11... dxe4 {[%clk 0:02:25]} 12. Nh4 {[%clk 0:01:57.8]} 12... Be6 {[%clk
0:02:08.5]} 13. dxe4 {[%clk 0:01:54.4]} 13... Nbd7 {[%clk 0:01:55.9]} 14. Nf5
{[%clk 0:01:50.7]} 14... Bxf5 {[%clk 0:01:55.4]} 15. exf5 {[%clk 0:01:49.9]}
15... Ba3 {[%clk 0:01:46.5]} 16. Qc2 {[%clk 0:01:40.9]} 16... Bxb2 {[%clk
0:01:44.3]} 17. Qxb2 {[%clk 0:01:40.5]} 17... a5 {[%clk 0:01:42.6]} 18. Rae1
{[%clk 0:01:33.9]} 18... Kh7 {[%clk 0:01:40.1]} 19. Nf3 {[%clk 0:01:26]} 19...
Rhe8 {[%clk 0:01:39.3]} 20. Re3 {[%clk 0:01:20]} 20... a4 {[%clk 0:01:12.7]} 21.
Rfe1 {[%clk 0:01:14.8]} 21... axb3 {[%clk 0:01:12.9]} 22. axb3 {[%clk
0:01:14.1]} 22... Qa3 {[%clk 0:01:13.5]} 23. Qb1 {[%clk 0:01:04.8]} 23... Qb4
{[%clk 0:00:46.4]} 24. Nxe5 {[%clk 0:00:57.9]} 24... Nxe5 {[%clk 0:00:46]} 25.
Rxe5 {[%clk 0:00:57.3]} 25... Rxe5 {[%clk 0:00:45.4]} 26. Rxe5 {[%clk
0:00:57.1]} 26... Qd2 {[%clk 0:00:41.2]} 27. Re1 {[%clk 0:00:50]} 27... Ra2
{[%clk 0:00:39.9]} 28. Rf1 {[%clk 0:00:49.4]} 28... Rb2 {[%clk 0:00:40.2]} 29.
Qe1 {[%clk 0:00:46.3]} 29... Qxe1 {[%clk 0:00:39]} 30. Rxe1 {[%clk 0:00:45.6]}
30... Rxb3 {[%clk 0:00:39.9]} 31. Re7 {[%clk 0:00:45.2]} 31... Kg8 {[%clk
0:00:35.8]} 32. Rc7 {[%clk 0:00:42.7]} 32... Kf8 {[%clk 0:00:34.4]} 33. g4
{[%clk 0:00:42.6]} 33... Ne8 {[%clk 0:00:34.4]} 34. Rd7 {[%clk 0:00:39.7]} 34...
Nf6 {[%clk 0:00:34.4]} 35. Rc7 {[%clk 0:00:37.2]} 35... Rb1+ {[%clk 0:00:32.3]}
36. Kh2 {[%clk 0:00:36.3]} 36... Rb3 {[%clk 0:00:32.8]} 37. f4 {[%clk
0:00:34.1]} 37... Rb2 {[%clk 0:00:30.2]} 38. Kg3 {[%clk 0:00:30.3]} 38... Rb3+
{[%clk 0:00:28.3]} 39. Kh2 {[%clk 0:00:27.4]} 39... Rb4 {[%clk 0:00:28.5]} 40.
g5 {[%clk 0:00:24.1]} 40... Nh5 {[%clk 0:00:17]} 41. Bf3 {[%clk 0:00:19.3]}
41... Nxf4 {[%clk 0:00:16.6]} 42. f6 {[%clk 0:00:18.9]} 42... gxf6 {[%clk
0:00:08]} 43. gxf6 {[%clk 0:00:17.7]} 43... Kg8 {[%clk 0:00:07.6]} 44. Be4
{[%clk 0:00:16.7]} 44... Ng6 {[%clk 0:00:07.6]} 45. Bxg6 {[%clk 0:00:13.1]}
45... fxg6 {[%clk 0:00:07.5]} 46. Rg7+ {[%clk 0:00:11.8]} 46... Kf8 {[%clk
0:00:07.9]} 47. Rc7 {[%clk 0:00:06.7]} 47... Rxc4 {[%clk 0:00:06.5]} 48. Rxb7
{[%clk 0:00:06]} 48... Rf4 {[%clk 0:00:07.1]} 0-1

[Event "Early-Titled-Tuesday-Blitz-February-06-2024"]
[Site "Chess.com"]
[Date "2024.02.06"]
[Round "2"]
[White "Willi_Skibbe"]
[Black "mortngabriel"]
[Result "1-0"]
[WhiteElo "2341"]
[BlackElo "2510"]
[TimeControl "180+1"]
[EndTime "8:18:12 PST"]
[Termination "Willi_Skibbe won by resignation"]

1. d4 {[%clk 0:03:00.9]} 1... Nf6 {[%clk 0:02:59.7]} 2. Nf3 {[%clk 0:02:56.8]}
2... c5 {[%clk 0:02:59.1]} 3. e3 {[%clk 0:02:56.7]} 3... d5 {[%clk 0:02:55.9]}
4. Nbd2 {[%clk 0:02:56.3]} 4... Nc6 {[%clk 0:02:52.5]} 5. dxc5 {[%clk 0:02:55]}
5... e5 {[%clk 0:02:37.1]} 6. Bb5 {[%clk 0:02:53.8]} 6... Qc7 {[%clk 0:02:27.4]}
7. b4 {[%clk 0:02:50]} 7... Bd7 {[%clk 0:02:25.2]} 8. Bxc6 {[%clk 0:02:48.5]}
8... bxc6 {[%clk 0:02:22.6]} 9. Bb2 {[%clk 0:02:48.3]} 9... e4 {[%clk
0:02:16.5]} 10. Nd4 {[%clk 0:02:40.1]} 10... Be7 {[%clk 0:02:12.4]} 11. O-O
{[%clk 0:02:35.8]} 11... Ng4 {[%clk 0:02:07.4]} 12. g3 {[%clk 0:02:35]} 12... h5
{[%clk 0:02:04.3]} 13. c4 {[%clk 0:02:20.8]} 13... h4 {[%clk 0:02:01.1]} 14.
cxd5 {[%clk 0:02:10.5]} 14... cxd5 {[%clk 0:01:52.8]} 15. Qe2 {[%clk 0:01:50.8]}
15... Nxh2 {[%clk 0:01:39.2]} 16. Kxh2 {[%clk 0:01:41.8]} 16... hxg3+ {[%clk
0:01:34.6]} 17. Kg1 {[%clk 0:01:34.3]} 17... g2 {[%clk 0:01:25.3]} 18. f4 {[%clk
0:01:32.6]} 18... exf3 {[%clk 0:01:14]} 19. N2xf3 {[%clk 0:01:26.8]} 19...
gxf1=Q+ {[%clk 0:01:09.5]} 20. Rxf1 {[%clk 0:01:24.9]} 20... Bh3 {[%clk
0:00:59]} 21. Qf2 {[%clk 0:00:32.4]} 21... Bxf1 {[%clk 0:00:55.6]} 22. Kxf1
{[%clk 0:00:33.3]} 22... Bf6 {[%clk 0:00:47.2]} 23. Qg2 {[%clk 0:00:21.8]} 23...
Rb8 {[%clk 0:00:34.7]} 24. Bc3 {[%clk 0:00:20.1]} 24... a5 {[%clk 0:00:33.7]}
25. a3 {[%clk 0:00:20.2]} 25... axb4 {[%clk 0:00:33.7]} 26. axb4 {[%clk
0:00:20.8]} 26... Ra8 {[%clk 0:00:34.4]} 27. Nb5 {[%clk 0:00:16.6]} 27... Qd7
{[%clk 0:00:25.5]} 28. Nd6+ {[%clk 0:00:16.2]} 28... Kf8 {[%clk 0:00:24.2]} 29.
Nd4 {[%clk 0:00:12.9]} 29... Qh3 {[%clk 0:00:16]} 30. Qxh3 {[%clk 0:00:12.8]}
30... Rxh3 {[%clk 0:00:16.7]} 31. Ke2 {[%clk 0:00:11.4]} 31... Ra2+ {[%clk
0:00:15.4]} 32. Kd3 {[%clk 0:00:11.6]} 32... Bg5 {[%clk 0:00:12.2]} 33. Nc2
{[%clk 0:00:08.9]} 33... Bxe3 {[%clk 0:00:09.4]} 34. Nxe3 {[%clk 0:00:08.6]}
34... Ra3 {[%clk 0:00:07.8]} 35. b5 {[%clk 0:00:05.5]} 35... Rb3 {[%clk
0:00:07.4]} 36. b6 {[%clk 0:00:04.8]} 36... Ke7 {[%clk 0:00:07.2]} 37. Kd4
{[%clk 0:00:04.5]} 37... Rh4+ {[%clk 0:00:06.8]} 38. Kd3 {[%clk 0:00:03.8]}
38... Kd7 {[%clk 0:00:06.8]} 39. Nxd5 {[%clk 0:00:03.6]} 39... Rh3+ {[%clk
0:00:06.8]} 40. Kc4 {[%clk 0:00:03.4]} 40... Rb1 {[%clk 0:00:05.2]} 41. Nb4
{[%clk 0:00:03.2]} 41... Rc1 {[%clk 0:00:04.9]} 42. Kb5 {[%clk 0:00:02.6]} 42...
Rcxc3 {[%clk 0:00:04.7]} 43. b7 {[%clk 0:00:03]} 43... Kc7 {[%clk 0:00:04.8]}
44. Na6+ {[%clk 0:00:01.1]} 44... Kd7 {[%clk 0:00:04.9]} 45. b8=Q {[%clk
0:00:02]} 45... Rb3+ {[%clk 0:00:05.1]} 46. Nb4 {[%clk 0:00:02.6]} 46... Rh4
{[%clk 0:00:04.5]} 47. Qc8+ {[%clk 0:00:03]} 47... Ke7 {[%clk 0:00:04.5]} 48.
Qe8+ {[%clk 0:00:03.5]} 48... Kf6 {[%clk 0:00:04.8]} 49. Qd8+ {[%clk 0:00:04.2]}
49... Ke6 {[%clk 0:00:03.8]} 50. Qxh4 {[%clk 0:00:05.1]} 1-0

[Event "Early-Titled-Tuesday-Blitz-February-06-2024"]
[Site "Chess.com"]
[Date "2024.02.06"]
[Round "2"]
[White "JohnWhite1952"]
[Black "kaanadayhamle"]
[Result "0-1"]
[WhiteElo "1981"]
[BlackElo "2416"]
[TimeControl "180+1"]
[EndTime "8:18:12 PST"]
[Termination "kaanadayhamle won by resignation"]

1. e4 {[%clk 0:02:56.9]} 1... e5 {[%clk 0:02:56.6]} 2. Nf3 {[%clk 0:02:54]} 2...
Nf6 {[%clk 0:02:56.9]} 3. d4 {[%clk 0:02:48.9]} 3... Nxe4 {[%clk 0:02:55.9]} 4.
Bd3 {[%clk 0:02:45.9]} 4... d5 {[%clk 0:02:56]} 5. c4 {[%clk 0:02:39.3]} 5...
exd4 {[%clk 0:02:46.6]} 6. Nxd4 {[%clk 0:02:33.7]} 6... Nc5 {[%clk 0:02:38.1]}
7. O-O {[%clk 0:02:30.6]} 7... Be7 {[%clk 0:02:33.3]} 8. Re1 {[%clk 0:02:28.4]}
8... O-O {[%clk 0:02:24.1]} 9. Nc3 {[%clk 0:02:27]} 9... dxc4 {[%clk 0:02:20.6]}
10. Bxc4 {[%clk 0:02:25.9]} 10... Bf6 {[%clk 0:02:20.7]} 11. Be3 {[%clk
0:02:22.3]} 11... b6 {[%clk 0:01:57.5]} 12. Ndb5 {[%clk 0:02:17.9]} 12... a6
{[%clk 0:01:09.6]} 13. Qxd8 {[%clk 0:02:12.1]} 13... Bxd8 {[%clk 0:01:10.5]} 14.
Bxc5 {[%clk 0:02:01.4]} 14... bxc5 {[%clk 0:01:11.4]} 15. Na3 {[%clk 0:01:53.1]}
15... Bb7 {[%clk 0:01:11.1]} 16. Rad1 {[%clk 0:01:43.4]} 16... Bf6 {[%clk
0:01:10.1]} 17. Re2 {[%clk 0:01:19.1]} 17... Nc6 {[%clk 0:00:52.2]} 18. Nd5
{[%clk 0:01:16.2]} 18... Be5 {[%clk 0:00:42]} 19. Rde1 {[%clk 0:01:11.4]} 19...
Bd6 {[%clk 0:00:40.9]} 20. Nc2 {[%clk 0:01:04.7]} 20... Na5 {[%clk 0:00:36.4]}
21. b3 {[%clk 0:00:53.7]} 21... Nxc4 {[%clk 0:00:35.4]} 22. bxc4 {[%clk
0:00:52.9]} 22... Bxd5 {[%clk 0:00:36.3]} 23. cxd5 {[%clk 0:00:52.4]} 23... Rab8
{[%clk 0:00:37.2]} 24. Ne3 {[%clk 0:00:47.5]} 24... Rb4 {[%clk 0:00:35.8]} 25.
Nf5 {[%clk 0:00:42.2]} 25... g6 {[%clk 0:00:36.1]} 26. Nxd6 {[%clk 0:00:37.4]}
26... cxd6 {[%clk 0:00:37]} 27. Rd2 {[%clk 0:00:23]} 27... Rb7 {[%clk
0:00:34.1]} 28. g3 {[%clk 0:00:22.8]} 28... Rfb8 {[%clk 0:00:33.1]} 29. Kg2
{[%clk 0:00:19.8]} 29... Kf8 {[%clk 0:00:33.6]} 30. Ree2 {[%clk 0:00:18.6]}
30... Re7 {[%clk 0:00:33.7]} 31. h4 {[%clk 0:00:15.5]} 31... Rc8 {[%clk
0:00:29.7]} 32. Rc2 {[%clk 0:00:14.1]} 32... Re5 {[%clk 0:00:21.5]} 33. Rxe5
{[%clk 0:00:13]} 33... dxe5 {[%clk 0:00:22.4]} 34. Kf3 {[%clk 0:00:12.7]} 34...
Ke7 {[%clk 0:00:23]} 35. Ke4 {[%clk 0:00:12.7]} 35... Kd6 {[%clk 0:00:23.1]} 36.
f4 {[%clk 0:00:10.8]} 36... f5+ {[%clk 0:00:22.7]} 37. Ke3 {[%clk 0:00:10.5]}
37... Kxd5 {[%clk 0:00:19.7]} 38. Rd2+ {[%clk 0:00:09.3]} 38... Ke6 {[%clk
0:00:20.1]} 39. fxe5 {[%clk 0:00:08.9]} 39... Kxe5 {[%clk 0:00:20.6]} 40. Rd7
{[%clk 0:00:09]} 40... c4 {[%clk 0:00:18.8]} 41. Rxh7 {[%clk 0:00:07.2]} 41...
c3 {[%clk 0:00:19.2]} 42. Kd3 {[%clk 0:00:04.7]} 42... c2 {[%clk 0:00:19.4]} 43.
Re7+ {[%clk 0:00:04.7]} 43... Kf6 {[%clk 0:00:19.1]} 44. Re1 {[%clk 0:00:03.5]}
44... c1=Q {[%clk 0:00:19.7]} 45. Rxc1 {[%clk 0:00:03.5]} 45... Rxc1 {[%clk
0:00:20.6]} 46. Kd4 {[%clk 0:00:03.7]} 46... Rg1 {[%clk 0:00:20.7]} 47. Kd5
{[%clk 0:00:03.5]} 47... Rxg3 {[%clk 0:00:20.9]} 0-1

[Event "Early-Titled-Tuesday-Blitz-February-06-2024"]
[Site "Chess.com"]
[Date "2024.02.06"]
[Round "2"]
[White "adotand"]
[Black "xakevicius91"]
[Result "1-0"]
[WhiteElo "2890"]
[BlackElo "2602"]
[TimeControl "180+1"]
[EndTime "8:18:13 PST"]
[Termination "adotand won by checkmate"]

1. d4 {[%clk 0:03:00.9]} 1... Nf6 {[%clk 0:03:00.1]} 2. Bf4 {[%clk 0:03:01.2]}
2... e6 {[%clk 0:03:00.3]} 3. e3 {[%clk 0:03:01.3]} 3... c5 {[%clk 0:03:00.7]}
4. Nf3 {[%clk 0:03:01.4]} 4... cxd4 {[%clk 0:03:01.1]} 5. exd4 {[%clk 0:03:02]}
5... b6 {[%clk 0:03:01.7]} 6. Nbd2 {[%clk 0:03:02]} 6... Ba6 {[%clk 0:03:01.5]}
7. c4 {[%clk 0:02:58.8]} 7... Be7 {[%clk 0:02:58.7]} 8. Be2 {[%clk 0:02:55.3]}
8... O-O {[%clk 0:02:58.6]} 9. O-O {[%clk 0:02:55.9]} 9... Bb7 {[%clk
0:02:51.4]} 10. Bd3 {[%clk 0:02:51.5]} 10... d5 {[%clk 0:02:48.1]} 11. Qe2
{[%clk 0:02:47.5]} 11... Nc6 {[%clk 0:02:48.2]} 12. Be5 {[%clk 0:02:39.5]} 12...
Rc8 {[%clk 0:02:44.5]} 13. Rad1 {[%clk 0:02:36.7]} 13... Nb4 {[%clk 0:02:40.6]}
14. Bb1 {[%clk 0:02:36.9]} 14... dxc4 {[%clk 0:02:41]} 15. Nxc4 {[%clk
0:02:34.9]} 15... Nbd5 {[%clk 0:02:40.2]} 16. Rc1 {[%clk 0:02:31.1]} 16... b5
{[%clk 0:02:22.3]} 17. Ne3 {[%clk 0:02:29.2]} 17... Qb6 {[%clk 0:02:19.4]} 18.
Nxd5 {[%clk 0:02:27.1]} 18... Bxd5 {[%clk 0:02:19.4]} 19. Ng5 {[%clk 0:02:18.3]}
19... h6 {[%clk 0:02:11]} 20. Nh3 {[%clk 0:01:54.4]} 20... Bc4 {[%clk
0:02:01.8]} 21. Bd3 {[%clk 0:01:51.5]} 21... Bxd3 {[%clk 0:01:55.8]} 22. Qxd3
{[%clk 0:01:52.4]} 22... Nd5 {[%clk 0:01:53.7]} 23. a3 {[%clk 0:01:49.3]} 23...
a5 {[%clk 0:01:48.5]} 24. Rcd1 {[%clk 0:01:37.4]} 24... Bf6 {[%clk 0:01:40.1]}
25. f4 {[%clk 0:01:29.6]} 25... b4 {[%clk 0:01:35.4]} 26. a4 {[%clk 0:01:22.4]}
26... b3 {[%clk 0:01:31]} 27. Bxf6 {[%clk 0:01:20.9]} 27... Nxf6 {[%clk
0:01:30]} 28. Rf3 {[%clk 0:01:21.4]} 28... Rc2 {[%clk 0:01:19.1]} 29. Qxb3
{[%clk 0:01:20.6]} 29... Rxb2 {[%clk 0:01:19.4]} 30. Qxb6 {[%clk 0:01:20.7]}
30... Rxb6 {[%clk 0:01:20.3]} 31. f5 {[%clk 0:01:21.2]} 31... Rd8 {[%clk
0:01:11.8]} 32. fxe6 {[%clk 0:01:18.1]} 32... Rxe6 {[%clk 0:01:12.7]} 33. Rf5
{[%clk 0:01:18]} 33... Red6 {[%clk 0:00:54.7]} 34. Rxa5 {[%clk 0:01:14.2]} 34...
Rxd4 {[%clk 0:00:55.1]} 35. Rxd4 {[%clk 0:01:14.2]} 35... Rxd4 {[%clk 0:00:56]}
36. Nf2 {[%clk 0:01:08.7]} 36... g5 {[%clk 0:00:52.9]} 37. h3 {[%clk 0:01:06.7]}
37... Nd5 {[%clk 0:00:51]} 38. Ng4 {[%clk 0:01:05.6]} 38... Kg7 {[%clk
0:00:44.6]} 39. Ra7 {[%clk 0:01:05.8]} 39... Nf4 {[%clk 0:00:12]} 40. Ne5 {[%clk
0:00:56.7]} 40... Rd2 {[%clk 0:00:12.1]} 41. Rxf7+ {[%clk 0:00:44.7]} 41... Kg8
{[%clk 0:00:12.3]} 42. g4 {[%clk 0:00:44.3]} 42... Nxh3+ {[%clk 0:00:12.2]} 43.
Kf1 {[%clk 0:00:44.9]} 43... Nf4 {[%clk 0:00:12.3]} 44. a5 {[%clk 0:00:41.7]}
44... Ra2 {[%clk 0:00:12.4]} 45. Ra7 {[%clk 0:00:41.9]} 45... Nd5 {[%clk
0:00:12.4]} 46. Nc4 {[%clk 0:00:34.8]} 46... Nb4 {[%clk 0:00:12.2]} 47. Rb7
{[%clk 0:00:34.3]} 47... Nd3 {[%clk 0:00:11.6]} 48. Rb6 {[%clk 0:00:31.9]} 48...
Ra4 {[%clk 0:00:10.8]} 49. Rc6 {[%clk 0:00:30.4]} 49... Nb4 {[%clk 0:00:04]} 50.
Rc7 {[%clk 0:00:28.6]} 50... Nd3 {[%clk 0:00:03.5]} 51. Ke2 {[%clk 0:00:28.2]}
51... Nf4+ {[%clk 0:00:03.1]} 52. Kf3 {[%clk 0:00:28.9]} 52... Nd5 {[%clk
0:00:03.6]} 53. Rc5 {[%clk 0:00:28.1]} 53... Nb4 {[%clk 0:00:03.9]} 54. Ke4
{[%clk 0:00:27]} 54... Na6 {[%clk 0:00:04.3]} 55. Rc8+ {[%clk 0:00:27.1]} 55...
Kg7 {[%clk 0:00:04.3]} 56. Kf5 {[%clk 0:00:27.6]} 56... Nb4 {[%clk 0:00:03]} 57.
Rc7+ {[%clk 0:00:27.7]} 57... Kg8 {[%clk 0:00:03.5]} 58. Kg6 {[%clk 0:00:28.1]}
58... Nd5 {[%clk 0:00:03.9]} 59. Rc8# {[%clk 0:00:28.2]} 1-0

[Event "Early-Titled-Tuesday-Blitz-February-06-2024"]
[Site "Chess.com"]
[Date "2024.02.06"]
[Round "2"]
[White "JoliyRoger"]
[Black "BallottiLuca"]
[Result "1-0"]
[WhiteElo "2536"]
[BlackElo "2347"]
[TimeControl "180+1"]
[EndTime "8:18:13 PST"]
[Termination "JoliyRoger won on time"]

1. d4 {[%clk 0:03:00.9]} 1... Nf6 {[%clk 0:02:58]} 2. Nf3 {[%clk 0:03:01.3]}
2... e6 {[%clk 0:02:52.5]} 3. c4 {[%clk 0:02:59.1]} 3... Bb4+ {[%clk 0:02:49.2]}
4. Bd2 {[%clk 0:02:58]} 4... Qe7 {[%clk 0:02:46.4]} 5. Qc2 {[%clk 0:02:57.7]}
5... Bxd2+ {[%clk 0:02:43]} 6. Nbxd2 {[%clk 0:02:56.5]} 6... d6 {[%clk
0:02:43.4]} 7. e4 {[%clk 0:02:52.1]} 7... e5 {[%clk 0:02:41.5]} 8. d5 {[%clk
0:02:52.5]} 8... O-O {[%clk 0:02:38.7]} 9. Be2 {[%clk 0:02:51.3]} 9... a5 {[%clk
0:02:36.8]} 10. O-O {[%clk 0:02:50.6]} 10... Nbd7 {[%clk 0:02:35.9]} 11. b3
{[%clk 0:02:50.4]} 11... Nh5 {[%clk 0:02:33.2]} 12. Rfe1 {[%clk 0:02:45.1]}
12... Nc5 {[%clk 0:02:29]} 13. a3 {[%clk 0:02:17.6]} 13... Nf4 {[%clk
0:02:16.5]} 14. Bf1 {[%clk 0:02:12.2]} 14... Bg4 {[%clk 0:02:16]} 15. b4 {[%clk
0:02:03.4]} 15... Nd7 {[%clk 0:02:16.1]} 16. Qc3 {[%clk 0:01:59.5]} 16... Qf6
{[%clk 0:02:12.4]} 17. c5 {[%clk 0:01:36.4]} 17... Qg6 {[%clk 0:01:59.3]} 18.
Kh1 {[%clk 0:01:34.6]} 18... f5 {[%clk 0:01:53.2]} 19. exf5 {[%clk 0:01:21.4]}
19... Rxf5 {[%clk 0:01:53.9]} 20. h3 {[%clk 0:01:15.2]} 20... Rh5 {[%clk
0:01:52.5]} 21. Nh2 {[%clk 0:01:10.5]} 21... Nf6 {[%clk 0:01:25.7]} 22. Qg3
{[%clk 0:00:46.9]} 22... Rg5 {[%clk 0:01:17.2]} 23. Nxg4 {[%clk 0:00:33.3]}
23... Nxg4 {[%clk 0:01:18.1]} 24. Nf3 {[%clk 0:00:30.7]} 24... Rh5 {[%clk
0:00:58.7]} 25. Kg1 {[%clk 0:00:30.8]} 25... Nf6 {[%clk 0:00:21.5]} 26. Qxg6
{[%clk 0:00:30.8]} 26... Nxg6 {[%clk 0:00:20.5]} 27. g4 {[%clk 0:00:27.9]} 27...
Rh6 {[%clk 0:00:16.9]} 28. g5 {[%clk 0:00:28.4]} 28... Rh5 {[%clk 0:00:17.4]}
29. gxf6 {[%clk 0:00:28.9]} 29... gxf6 {[%clk 0:00:18.3]} 30. cxd6 {[%clk
0:00:24.5]} 30... cxd6 {[%clk 0:00:19.2]} 31. Rac1 {[%clk 0:00:21.2]} 31... Kg7
{[%clk 0:00:18.9]} 32. Rc7+ {[%clk 0:00:18.4]} 32... Kh6 {[%clk 0:00:19.5]} 33.
Rxb7 {[%clk 0:00:18.2]} 33... axb4 {[%clk 0:00:19.8]} 34. axb4 {[%clk
0:00:18.5]} 34... Rg8 {[%clk 0:00:20.4]} 35. Kh2 {[%clk 0:00:16]} 35... Nf4
{[%clk 0:00:20.4]} 36. Rf7 {[%clk 0:00:15]} 36... Kg6 {[%clk 0:00:19.3]} 37. Rd7
{[%clk 0:00:15]} 37... Kf5 {[%clk 0:00:17.8]} 38. Rxd6 {[%clk 0:00:15]} 38... e4
{[%clk 0:00:12.7]} 39. Nd4+ {[%clk 0:00:13.1]} 39... Ke5 {[%clk 0:00:13.3]} 40.
Nb5 {[%clk 0:00:12.3]} 40... Rb8 {[%clk 0:00:06.8]} 41. Rd7 {[%clk 0:00:05.7]}
41... Nxd5 {[%clk 0:00:06.8]} 42. Rxd5+ {[%clk 0:00:06.6]} 42... Kxd5 {[%clk
0:00:05.9]} 43. Nc7+ {[%clk 0:00:06.7]} 43... Kd6 {[%clk 0:00:05.2]} 44. Na6
{[%clk 0:00:07.3]} 44... Ra8 {[%clk 0:00:03.5]} 45. b5 {[%clk 0:00:07.7]} 45...
Rg5 {[%clk 0:00:01.3]} 46. Rxe4 {[%clk 0:00:06.8]} 46... Rg7 {[%clk 0:00:01.5]}
47. Rg4 {[%clk 0:00:06.4]} 1-0

[Event "Early-Titled-Tuesday-Blitz-February-06-2024"]
[Site "Chess.com"]
[Date "2024.02.06"]
[Round "2"]
[White "ljuks68"]
[Black "FMStan15"]
[Result "1-0"]
[WhiteElo "2418"]
[BlackElo "2008"]
[TimeControl "180+1"]
[EndTime "8:18:13 PST"]
[Termination "ljuks68 won on time"]

1. e4 {[%clk 0:03:00.9]} 1... e6 {[%clk 0:02:52.5]} 2. Nf3 {[%clk 0:03:01.8]}
2... d5 {[%clk 0:02:52.2]} 3. e5 {[%clk 0:02:54.7]} 3... c5 {[%clk 0:02:46.5]}
4. b4 {[%clk 0:02:52.7]} 4... c4 {[%clk 0:02:46.6]} 5. a3 {[%clk 0:02:47.9]}
5... a5 {[%clk 0:02:43.2]} 6. b5 {[%clk 0:02:47.3]} 6... Ne7 {[%clk 0:02:42.1]}
7. d4 {[%clk 0:02:45.8]} 7... cxd3 {[%clk 0:02:40.9]} 8. Bxd3 {[%clk 0:02:46.1]}
8... Nf5 {[%clk 0:02:39.4]} 9. Bxf5 {[%clk 0:02:45.1]} 9... exf5 {[%clk
0:02:39.3]} 10. O-O {[%clk 0:02:45.2]} 10... Be6 {[%clk 0:02:39.5]} 11. Nd4
{[%clk 0:02:43.7]} 11... Bc5 {[%clk 0:02:38.6]} 12. Be3 {[%clk 0:02:41.4]} 12...
Bxd4 {[%clk 0:02:37.1]} 13. Bxd4 {[%clk 0:02:41.2]} 13... O-O {[%clk 0:02:37.6]}
14. Nc3 {[%clk 0:02:37.8]} 14... Nd7 {[%clk 0:02:37.3]} 15. Ne2 {[%clk
0:02:37.4]} 15... b6 {[%clk 0:02:37.4]} 16. Nf4 {[%clk 0:02:36]} 16... Nc5
{[%clk 0:02:37.4]} 17. Qe2 {[%clk 0:02:29.2]} 17... Rc8 {[%clk 0:02:35.9]} 18.
Rad1 {[%clk 0:02:21.7]} 18... Qc7 {[%clk 0:02:36]} 19. Qe3 {[%clk 0:02:11.2]}
19... Nd7 {[%clk 0:02:27.1]} 20. Rd2 {[%clk 0:02:08.9]} 20... Qc4 {[%clk
0:02:26.1]} 21. Qe2 {[%clk 0:01:48.1]} 21... Qxe2 {[%clk 0:02:20.3]} 22. Rxe2
{[%clk 0:01:47.4]} 22... Rc4 {[%clk 0:02:20.4]} 23. Rd2 {[%clk 0:01:47.7]} 23...
Ra4 {[%clk 0:02:18.7]} 24. Rd3 {[%clk 0:01:47]} 24... Rc8 {[%clk 0:02:17.6]} 25.
Rc1 {[%clk 0:01:44]} 25... Rcc4 {[%clk 0:02:15.5]} 26. Ne2 {[%clk 0:01:40]}
26... Nc5 {[%clk 0:02:12.4]} 27. Bxc5 {[%clk 0:01:37.4]} 27... Rxc5 {[%clk
0:02:00.1]} 28. Nd4 {[%clk 0:01:37.1]} 28... Rcc4 {[%clk 0:01:52.4]} 29. Rcd1
{[%clk 0:01:37.1]} 29... Kf8 {[%clk 0:01:47.6]} 30. f4 {[%clk 0:01:32.1]} 30...
Ke8 {[%clk 0:01:46.1]} 31. Kf2 {[%clk 0:01:32]} 31... Kd7 {[%clk 0:01:45.8]} 32.
Ke3 {[%clk 0:01:28.6]} 32... Kc7 {[%clk 0:01:34.6]} 33. g3 {[%clk 0:01:15.3]}
33... Bd7 {[%clk 0:01:31.1]} 34. Rb1 {[%clk 0:01:12.2]} 34... Be6 {[%clk
0:01:25.2]} 35. Rbb3 {[%clk 0:01:11.8]} 35... h6 {[%clk 0:01:23.9]} 36. Rdc3
{[%clk 0:01:07.7]} 36... Kd7 {[%clk 0:01:12.8]} 37. Rxc4 {[%clk 0:01:06.6]}
37... Rxc4 {[%clk 0:01:01.7]} 38. Kd3 {[%clk 0:01:04.7]} 38... Kc7 {[%clk
0:00:57.2]} 39. Rc3 {[%clk 0:00:53.7]} 39... Rxc3+ {[%clk 0:00:56.7]} 40. Kxc3
{[%clk 0:00:54]} 40... Bd7 {[%clk 0:00:55.8]} 41. a4 {[%clk 0:00:48.7]} 41...
Kb7 {[%clk 0:00:52.5]} 42. Ne2 {[%clk 0:00:48.1]} 42... Kc7 {[%clk 0:00:51.4]}
43. Kd4 {[%clk 0:00:48.3]} 43... Be6 {[%clk 0:00:51.8]} 44. Nc3 {[%clk
0:00:48.3]} 44... g5 {[%clk 0:00:48.3]} 45. Nxd5+ {[%clk 0:00:48.2]} 45... Kb7
{[%clk 0:00:48.6]} 46. c4 {[%clk 0:00:48]} 46... gxf4 {[%clk 0:00:47.3]} 47.
gxf4 {[%clk 0:00:47.4]} 47... Kb8 {[%clk 0:00:32.8]} 48. c5 {[%clk 0:00:47.6]}
48... bxc5+ {[%clk 0:00:30.5]} 49. Kxc5 {[%clk 0:00:48.2]} 49... Kb7 {[%clk
0:00:26.8]} 50. Ne3 {[%clk 0:00:34]} 50... Bb3 {[%clk 0:00:23.9]} 51. Nc4 {[%clk
0:00:32]} 51... Bxa4 {[%clk 0:00:18]} 52. Nxa5+ {[%clk 0:00:32.1]} 52... Kc7
{[%clk 0:00:18.3]} 53. Nc4 {[%clk 0:00:28.3]} 53... Bb3 {[%clk 0:00:14.3]} 54.
b6+ {[%clk 0:00:25.5]} 54... Kb7 {[%clk 0:00:13.7]} 55. Nd6+ {[%clk 0:00:25.4]}
55... Kb8 {[%clk 0:00:13.9]} 56. Nxf5 {[%clk 0:00:25.2]} 56... h5 {[%clk
0:00:13.4]} 57. h4 {[%clk 0:00:24.2]} 57... Ba2 {[%clk 0:00:12.5]} 58. Ng7
{[%clk 0:00:22.8]} 1-0